[Event "57th Biel Festival MTO 2024"]
[White "Amartuvshin,Ganzorig"]
[Black "Cervantes Landeiro,Thalia"]
[Site "Biel"]
[Round "5.22"]
[Annotator "TA"]
[Result "1/2-1/2"]
[Date "2024.07.19"]
[WhiteElo "2411"]
[BlackElo "2271"]
[PlyCount "88"]
[TimeControl "60"]

{[%evp 24,88,27,21,33,17,33,9,41,54,64,49,74,20,43,0,8,0,20,0,0,0,0,0,9,29,62,66,81,81,77,81,81,79,79,0,0,0,0,0,0,0,0,0,0,0,0,0,0,0,0,0,0,0,0,0,0,0,0,0,0,0,0,0,0,0,0]} 1. d4 {[%emt 0:1:12]} Nf6 {[%emt 0:0:6]} 2. c4 {[%emt 0:0:4]} g6 {[%emt 0:0:9]} 3. Nc3 {[%emt 0:0:5]} d5 {[%emt 0:0:7]} 4. cxd5 {[%emt 0:0:4]} Nxd5 {[%emt 0:0:7]} 5. e4 {[%emt 0:0:4]} Nxc3 {[%emt 0:0:6]} 6. bxc3 {[%emt 0:0:3]} Bg7 {[%emt 0:0:10]} 7. Bc4 {[%emt 0:0:11]} c5 {[%emt 0:0:22]} 8. Ne2 {[%emt 0:0:8]} O-O {[%emt 0:0:9]} 9. Be3 {[%emt 0:0:5]} Nc6 {[%emt 0:0:18]} 10. O-O {[%emt 0:0:8]} Bg4 {[%emt 0:0:58]} 11. f3 {[%emt 0:0:8]} Bd7 {[%emt 0:6:2]} 12. Rb1 {[%emt 0:0:16]} cxd4 {[%emt 0:5:27]} 13. cxd4 {[%emt 0:1:18][%cal Od1d2]} Na5 {[%emt 0:1:15]} 14. Bd3 {[%emt 0:0:32]} a6 {[%emt 0:10:24]} 15. Qd2 {[%emt 0:7:38]} b5 {[%emt 0:2:32]} 16. Rfc1 {[%emt 0:1:41]} Rc8 {[%emt 0:5:38]} 17. h4 {[%emt 0:3:0][%cal Oh4h5]} h5 {[%emt 0:8:10]} 18. Bh6 {[%emt 0:0:27]} (18. Rxc8 $16 Bxc8 19. Rc1 )Qb6 {[%emt 0:7:29]} 19. Be3 {[%emt 0:9:53]} Rxc1+ {[%emt 0:4:43]} 20. Rxc1 {[%emt 0:0:6]} Rc8 {[%emt 0:2:33]} 21. d5 {[%emt 0:0:42]} Qd8 {[%emt 0:4:24]} 22. Rxc8 {[%emt 0:0:44]} Bxc8 {[%emt 0:0:7]} 23. a4 {[%emt 0:1:2]} bxa4 {[%emt 0:13:52]} 24. Qb4 {[%emt 0:0:19][%cal Oe3b6] [#] aiming for Bb6!} Nc6 {[%emt 0:2:32]} 25. Qxa4 {[%emt 0:1:36] White is more active.} (25. dxc6 $2 {is the wrong capture.} Qxd3 26. Kf2 a3 $19 )Ne5 {[%emt 0:14:48]} 26. Bxa6 {[%emt 0:0:13]} Bd7 {[%emt 0:2:29]} 27. Bb5 {[%emt 0:1:43]} Bxb5 {[%emt 0:0:36]} 28. Qxb5 {[%emt 0:0:7]} Qa8 {[%emt 0:0:20]} 29. Bd4 {[%emt 0:1:21] Repels Qa1+} (29. Kh2 $16 )Nxf3+ $1 $11 {[%emt 0:4:44] The position is equal.} 30. gxf3 {[%emt 0:0:10]} Bxd4+ {[%emt 0:0:9]} 31. Nxd4 {[%emt 0:0:8]} Qa1+ {[%emt 0:0:6]} 32. Kg2 {[%emt 0:0:13]} Qxd4 {[%emt 0:0:9][%mdl 4096] Endgame. KQ-KQ} 33. Qe8+ {[%emt 0:0:5]} Kg7 {[%emt 0:0:14]} 34. Qxe7 {[%emt 0:0:6]} Qd2+ {[%emt 0:2:4]} 35. Kh3 {[%emt 0:0:47]} Qc3 {[%emt 0:3:27] Prevents Qc5.} 36. Kg3 {[%emt 0:0:46]} Qe1+ {[%emt 0:0:13]} 37. Kf4 {[%emt 0:0:6]} Qc1+ {[%emt 0:1:37]} 38. Ke5 {[%emt 0:0:7]} Qa1+ {[%emt 0:1:10]} 39. Kd6 {[%emt 0:0:5]} Qa3+ {[%emt 0:0:33]} 40. Kd7 {[%emt 0:0:8]} Qa4+ {[%emt 0:1:18]} 41. Kc8 {[%emt 0:50:22] [#] Qe5+ is the strong threat.} (41. Kd8 $5 Qa8+ $8 42. Kd7 Qa4+ 43. Kd8 Qa8+ 44. Kd7 Qa4+ $11 )Qa8+ {[%emt 0:50:30]} 42. Kc7 {[%emt 0:0:4]} (42. Kd7 $5 Qa4+ $8 43. Kd8 Qa8+ 44. Kc7 (44. Kd7 Qa4+ $11 )Qa7+ 45. Kd8 Qa8+ 46. Kd7 Qa4+ $11 )Qa7+ {[%emt 0:0:16]} 43. Kd8 {[%emt 0:0:6]} Qa8+ {[%emt 0:0:7]} 44. Kd7 {[%emt 0:0:6] And now Qe5+ would win.} (44. Kc7 $5 Qa7+ $8 45. Kd6 (45. Kd8 Qa8+ 46. Kc7 $11 )Qa3+ 46. Kd7 Qa4+ 47. Kc8 Qa8+ 48. Kd7 Qa4+ $11 )Qa4+ $1 {[%emt 0:0:5] Weighted Error Value: White=0.11 (very precise) /Black=0.07 (flawless) .  Mistake:       	White=2     	---        Inaccurate:     	White=1     	Black=2      OK:         	White=10    	Black=12     Best:        	White=1     	Black=4      Strong:       	---       	Black=2} 1/2-1/2

[Event "57th Biel Festival MTO 2024"]
[White "Song,Ethan"]
[Black "Tahay,Alexis"]
[Site "Biel"]
[Round "5.23"]
[Annotator "RC"]
[Result "1/2-1/2"]
[Date "2024.07.19"]
[WhiteElo "2244"]
[BlackElo "2375"]
[PlyCount "192"]
[TimeControl "60"]

1. e4 {[%emt 0:0:2]} c5 {[%emt 0:0:31]} 2. Nf3 {[%emt 0:0:7]} d6 {[%emt 0:0:3]} 3. Bb5+ {[%emt 0:0:6]} Bd7 {[%emt 0:0:3]} 4. Bxd7+ {[%emt 0:0:11]} Nxd7 {[%emt 0:0:4]} 5. O-O {[%emt 0:0:19]} Ngf6 {[%emt 0:0:3]} 6. Qe2 {[%emt 0:0:7]} e6 {[%emt 0:0:3]} 7. c3 {[%emt 0:0:42]} Be7 {[%emt 0:0:8]} 8. d4 {[%emt 0:0:49]} O-O {[%emt 0:0:4]} 9. e5 {[%emt 0:0:41]} dxe5 {[%emt 0:0:22]} 10. dxe5 {[%emt 0:0:10]} Nd5 {[%emt 0:0:3]} 11. Rd1 {[%emt 0:3:27]} Qc7 {[%emt 0:0:44]} 12. c4 {[%emt 0:1:14]} Nb4 {[%emt 0:0:8]} 13. Nc3 {[%emt 0:1:17]} a6 {[%emt 0:0:3]} 14. Bf4 {[%emt 0:1:27]} Rfd8 {[%emt 0:1:4]} 15. Bg3 {[%emt 0:12:46]} Nf8 {[%emt 0:4:34]} 16. a3 {[%emt 0:1:31]} Nc6 {[%emt 0:7:37]} 17. Nd5 {[%emt 0:7:34]} exd5 {[%emt 0:0:0]} 18. cxd5 {[%emt 0:0:2]} Qb6 {[%emt 0:2:20]} 19. dxc6 {[%emt 0:2:10]} Qxc6 {[%emt 0:0:34]} 20. Nh4 {[%emt 0:9:19]} g6 {[%emt 0:2:37]} 21. f4 {[%emt 0:3:24]} Ne6 {[%emt 0:4:42]} 22. f5 {[%emt 0:1:47]} Nd4 {[%emt 0:1:47]} 23. Qf2 {[%emt 0:1:42]} Qe4 {[%emt 0:1:31]} 24. Rf1 {[%emt 0:6:20]} Ne2+ {[%emt 0:21:14]} 25. Kh1 {[%emt 0:0:6]} Nxg3+ {[%emt 0:1:36]} 26. hxg3 {[%emt 0:0:10]} Bxh4 {[%emt 0:0:35]} 27. fxg6 {[%emt 0:10:20]} Qxg6 {[%emt 0:1:43]} 28. gxh4 {[%emt 0:0:11]} Rd4 {[%emt 0:0:3]} 29. Rae1 {[%emt 0:5:43]} Qh5 {[%emt 0:4:19]} 30. g3 {[%emt 0:1:1]} Rad8 {[%emt 0:9:21]} 31. Qf6 {[%emt 0:4:56]} Qg6 {[%emt 0:0:10]} 32. e6 {[%emt 0:3:16]} Qxf6 {[%emt 0:0:48]} 33. Rxf6 {[%emt 0:0:6]} fxe6 {[%emt 0:0:3]} 34. Rfxe6 {[%emt 0:0:19]} Rd3 {[%emt 0:0:21]} 35. Kg2 {[%emt 0:4:21]} R8d7 {[%emt 0:5:26]} 36. R1e2 {[%emt 0:2:58]} Kf7 {[%emt 0:5:7]} 37. Rh6 {[%emt 0:1:12]} Kg7 {[%emt 0:0:13]} 38. Rhe6 {[%emt 0:1:21]} Rb3 {[%emt 0:4:22]} 39. R6e5 {[%emt 0:3:53]} b6 {[%emt 0:4:17]} 40. Re6 {[%emt 0:1:34]} Kf7 {[%emt 0:0:42]} 41. R6e4 {[%emt 0:53:32]} Rbd3 {[%emt 0:56:28]} 42. Rf4+ {[%emt 0:1:56]} Kg7 {[%emt 0:0:4]} 43. Rg4+ {[%emt 0:0:28]} Kf8 {[%emt 0:0:5]} 44. Rge4 {[%emt 0:1:30]} Rd2 {[%emt 0:0:39]} 45. Rf4+ {[%emt 0:0:59]} Kg7 {[%emt 0:0:10]} 46. Rg4+ {[%emt 0:0:13]} Kf6 {[%emt 0:0:16]} 47. Rf4+ {[%emt 0:0:13]} Kg6 {[%emt 0:0:1]} 48. Rg4+ {[%emt 0:0:11]} Kh5 {[%emt 0:0:22]} 49. Rg5+ {[%emt 0:0:14]} Kh6 {[%emt 0:0:1]} 50. Rge5 {[%emt 0:0:25]} R7d6 {[%emt 0:2:46]} 51. Kf3 {[%emt 0:1:22]} R2d3+ {[%emt 0:4:8]} 52. R2e3 {[%emt 0:1:29]} Rf6+ {[%emt 0:2:42]} 53. Ke2 {[%emt 0:1:18]} Rd4 {[%emt 0:2:10]} 54. Rg5 {[%emt 0:9:47]} Rfd6 {[%emt 0:1:14]} 55. Ree5 {[%emt 0:1:27]} Rd2+ {[%emt 0:1:24]} 56. Ke3 {[%emt 0:3:58]} Rxb2 {[%emt 0:0:41]} 57. Rh5+ {[%emt 0:0:0]} Kg7 {[%emt 0:0:0]} 58. Re7+ {[%emt 0:0:0]} Kf6 {[%emt 0:0:0]} 59. Rhxh7 {[%emt 0:0:0]} Rb3+ {[%emt 0:0:0]} 60. Kf4 {[%emt 0:0:0]} Rd4+ {[%emt 0:0:0]} 61. Re4 {[%emt 0:0:0]} Rdd3 {[%emt 0:0:0]} 62. Rh6+ {[%emt 0:0:0]} Kg7 {[%emt 0:0:0]} 63. Rc6 {[%emt 0:0:0]} Rf3+ {[%emt 0:0:0]} 64. Kg4 {[%emt 0:0:0]} Rxg3+ {[%emt 0:0:0]} 65. Kh5 {[%emt 0:0:0]} c4 {[%emt 0:19:24]} 66. Re7+ {[%emt 0:0:0]} Kf8 {[%emt 0:0:0]} 67. Rb7 {[%emt 0:0:0]} Rb5+ {[%emt 0:0:0]} 68. Kh6 {[%emt 0:0:0]} Rc5 {[%emt 0:0:0]} 69. Rbxb6 {[%emt 0:0:0]} Rxc6+ {[%emt 0:0:0]} 70. Rxc6 {[%emt 0:0:0]} c3 {[%emt 0:0:0]} 71. Rxa6 {[%emt 0:0:0]} Ke7 {[%emt 0:0:0]} 72. h5 {[%emt 0:0:0]} Kd7 {[%emt 0:17:52]} 73. Ra4 {[%emt 0:0:0]} Re3 {[%emt 0:1:9]} 74. Rc4 {[%emt 0:0:0]} Kd6 {[%emt 0:0:29]} 75. Kg7 {[%emt 0:0:0]} Kd5 {[%emt 0:0:1]} 76. Rc8 {[%emt 0:0:0]} Rg3+ {[%emt 0:0:12]} 77. Kf6 {[%emt 0:0:0]} Rh3 {[%emt 0:0:26]} 78. Kg6 {[%emt 0:0:0]} Ke6 {[%emt 0:0:32]} 79. h6 {[%emt 0:0:0]} Rg3+ {[%emt 0:0:3]} 80. Kh7 {[%emt 0:0:0]} c2 {[%emt 0:2:0]} 81. a4 {[%emt 0:4:59]} Ra3 {[%emt 0:0:25]} 82. Rxc2 {[%emt 0:0:52]} Rxa4 {[%emt 0:0:16]} 83. Re2+ {[%emt 0:1:56]} Kf7 {[%emt 0:0:6]} 84. Rf2+ {[%emt 0:0:12]} Ke7 {[%emt 0:0:1]} 85. Kg6 {[%emt 0:5:36]} Rg4+ {[%emt 0:0:2]} 86. Kh5 {[%emt 0:1:17]} Rg1 {[%emt 0:0:1]} 87. h7 {[%emt 0:2:33]} Rh1+ {[%emt 0:0:1]} 88. Kg6 {[%emt 0:0:22]} Rg1+ {[%emt 0:0:3]} 89. Kf5 {[%emt 0:0:26]} Rh1 {[%emt 0:0:3]} 90. Ra2 {[%emt 0:1:12]} Kf8 {[%emt 0:1:6]} 91. Ra7 {[%emt 0:0:50]} Rf1+ {[%emt 0:0:13]} 92. Kg4 {[%emt 0:1:0]} Rh1 {[%emt 0:0:24]} 93. Kg3 {[%emt 0:0:30]} Rh6 {[%emt 0:0:8]} 94. h8=Q+ {[%emt 0:0:21]} Rxh8 {[%emt 0:0:1]} 95. Ra8+ {[%emt 0:0:7]} Kg7 {[%emt 0:0:4]} 96. Rxh8 {[%emt 0:0:4]} Kxh8 {[%emt 0:0:4]} 1/2-1/2

[Event "57th Biel Festival MTO 2024"]
[White "Kalogridis,Antonios"]
[Black "Collin,Moritz Valentin"]
[Site "Biel"]
[Round "5.24"]
[Annotator "TA"]
[Result "1/2-1/2"]
[Date "2024.07.19"]
[WhiteElo "2391"]
[BlackElo "2312"]
[PlyCount "102"]
[TimeControl "60"]

{[%evp 10,102,20,19,31,19,20,13,49,45,50,26,45,34,40,37,36,27,48,45,39,31,27,29,39,9,6,1,19,16,8,8,5,-27,-23,-19,-26,-21,-18,-24,0,0,0,0,0,0,0,0,0,0,0,0,0,0,0,0,0,0,8,-29,-29,-36,-36,-36,-36,-36,-36,-36,-36,-36,-36,-36,-36,-36,-36,-36,-31,-37,-10,-33,-33,-37,-33,-33,-33,-33,-33,-34,-34,-39,-33,-33,-33,-33,-33]} 1. d4 {[%emt 0:0:1]} Nf6 {[%emt 0:1:49]} 2. c4 {[%emt 0:0:4]} e6 {[%emt 0:0:9]} 3. Nc3 {[%emt 0:0:3]} Bb4 {[%emt 0:0:19]} 4. Nf3 {[%emt 0:0:4]} O-O {[%emt 0:0:10]} 5. Bg5 {[%emt 0:0:2][%cal Bc1g5,Bg5h4,Bh4g3][%mdl 32]} c5 {[%emt 0:1:24]} 6. Rc1 {[%emt 0:0:3]} h6 {[%emt 0:7:22]} 7. Bh4 {[%emt 0:0:5]} cxd4 {[%emt 0:3:53]} 8. Nxd4 {[%emt 0:0:7]} a6 {[%emt 0:5:22] The position is equal.} 9. e3 {[%emt 0:4:16]} b6 {[%emt 0:5:19]} 10. Be2 {[%emt 0:3:3]} Bb7 {[%emt 0:0:33]} 11. O-O {[%emt 0:1:13]} Be7 {[%emt 0:2:22]} 12. Bg3 {[%emt 0:6:25]} d6 {[%emt 0:4:55]} 13. a3 {[%emt 0:4:4]} Nbd7 {[%emt 0:6:13]} 14. b4 {[%emt 0:1:30]} Rc8 {[%emt 0:5:7]} 15. Qb3 {[%emt 0:20:23]} Qc7 {[%emt 0:5:48]} 16. Rfd1 {[%emt 0:2:39]} Rfd8 {[%emt 0:3:38]} 17. Rd2 {[%emt 0:21:28]} Ne5 {[%emt 0:14:1][%cal Re5c4]} 18. Rdc2 {[%emt 0:10:49]} Ne4 {[%emt 0:2:0]} ({But not} 18... Nxc4 $6 19. b5 $16 )19. Nxe4 {[%emt 0:0:57]} Bxe4 {[%emt 0:0:10]} 20. Rc3 {[%emt 0:0:7]} Bf6 {[%emt 0:9:54]} 21. c5 {[%emt 0:5:22]} bxc5 {[%emt 0:2:44]} 22. bxc5 {[%emt 0:1:0]} dxc5 {[%emt 0:3:51] aiming for ...Qe7.} 23. Bxa6 {[%emt 0:0:16]} Rb8 {[%emt 0:3:51]} 24. Bb5 {[%emt 0:7:51]} Qa5 {[%emt 0:4:54]} (24... Qe7 $5 25. Rxc5 Nd3 26. Bxb8 (26. Bxd3 $2 {too greedy.} Rxb3 27. Bxe4 Rxa3 $19 )Nxc5 $15 )25. Rxc5 {[%emt 0:0:43]} Nd3 {[%emt 0:1:56]} 26. Bxd3 {[%emt 0:10:55]} Rxb3 {[%emt 0:5:27]} 27. Rxa5 {[%emt 0:0:8]} Rxd3 {[%emt 0:0:10]} 28. h3 {[%emt 0:3:34]} Bxd4 {[%emt 0:4:3]} 29. exd4 {[%emt 0:0:1]} R8xd4 {[%emt 0:1:19]} 30. Kh2 {[%emt 0:1:48]} Rd1 {[%emt 0:2:24]} 31. Rxd1 {[%emt 0:0:24]} Rxd1 $11 {[%emt 0:0:15][%mdl 4096] Endgame. KRB-KRB} 32. a4 {[%emt 0:1:13]} Rd8 {[%emt 0:1:22]} 33. Rc5 {[%emt 0:0:31]} Rd5 {[%emt 0:1:52]} 34. Rc3 {[%emt 0:1:35]} Ra5 {[%emt 0:0:43]} 35. Rc8+ {[%emt 0:1:49]} Kh7 {[%emt 0:0:10]} 36. Rc4 {[%emt 0:0:6]} Bd5 {[%emt 0:0:44]} 37. Rf4 {[%emt 0:0:55]} Kg8 {[%emt 0:1:27]} 38. Rd4 {[%emt 0:0:49]} Bc6 {[%emt 0:0:25]} 39. Bc7 {[%emt 0:0:7]} Ra7 {[%emt 0:0:40]} 40. Bb6 {[%emt 0:0:30]} Rxa4 {[%emt 0:0:7]} 41. Rxa4 {[%emt 0:50:12]} Bxa4 $15 {[%emt 0:50:7] KB-KB} 42. Bd4 {[%emt 0:0:8]} g5 {[%emt 0:0:38]} 43. h4 {[%emt 0:0:14]} Kh7 {[%emt 0:0:37]} 44. hxg5 {[%emt 0:0:6]} hxg5 {[%emt 0:0:6] Black is slightly better.} 45. Kg3 {[%emt 0:0:23]} Bc6 {[%emt 0:0:53]} 46. f3 {[%emt 0:0:28]} Kg6 {[%emt 0:0:10]} 47. Kf2 {[%emt 0:0:10]} f6 {[%emt 0:1:2]} 48. Bb6 {[%emt 0:0:8]} e5 {[%emt 0:0:35]} 49. Bc5 {[%emt 0:0:8]} Kf5 {[%emt 0:0:17]} 50. g4+ {[%emt 0:0:14]} Ke6 {[%emt 0:0:11]} 51. Ke3 {[%emt 0:0:5]} Bb7 {[%emt 0:0:18] Weighted Error Value: White=0.05 (flawless) /Black=0.05 (flawless) .  Inaccurate:     	White=3     	Black=2      OK:         	White=18    	Black=19     Best:        	White=1     	---} 1/2-1/2

[Event "57th Biel Festival MTO 2024"]
[White "Lyutsinger,Iren"]
[Black "Vantika Agrawal"]
[Site "Biel"]
[Round "5.25"]
[Annotator "TA"]
[Result "1-0"]
[Date "2024.07.19"]
[WhiteElo "2069"]
[BlackElo "2390"]
[PlyCount "133"]
[TimeControl "60"]

{[%evp 24,133,0,0,1,2,4,0,0,0,0,0,0,0,0,0,0,-12,0,-14,0,-19,-15,-9,0,-22,-18,-49,-44,-37,-39,-42,-44,-49,0,0,0,-46,33,38,45,49,42,0,44,50,48,43,267,12,445,451,510,463,553,553,541,523,848,841,1786,1587,29945,29947,6625,6421,29983,29983,29983,29984,29984,29985,29970,29971,29963,1436,4594,4594,4434,4353,3827,3588,1355,762,1906,0,12847,12847,7619,7575,29964,29965,29967,29970,29975,29976,29975,29975,29979,29980,29981,29981,29981,29982,29982,29983,29983,29984,29984,29985,29985,29986]} 1. e4 {[%emt 0:0:2]} c5 {[%emt 0:0:50]} 2. Nf3 {[%emt 0:0:6]} d6 {[%emt 0:0:12]} 3. d4 {[%emt 0:0:5]} cxd4 {[%emt 0:0:9]} 4. Nxd4 {[%emt 0:0:4]} Nf6 {[%emt 0:0:5]} 5. Nc3 {[%emt 0:0:8]} a6 {[%emt 0:0:5]} 6. Bg5 {[%emt 0:0:4]} Nbd7 {[%emt 0:0:7]} 7. a3 {[%emt 0:0:18] B94: Sicilian Najdorf: 6 Bg5 Nbd7.} e6 {[%emt 0:10:41]} 8. Bc4 {[%emt 0:0:6]} Qa5 {[%emt 0:11:28]} 9. Qd2 {[%emt 0:4:57]} h6 {[%emt 0:6:43]} 10. Bh4 {[%emt 0:17:52]} b5 {[%emt 0:18:30]} 11. Ba2 {[%emt 0:3:48]} Bb7 {[%emt 0:5:6]} 12. O-O {[%emt 0:11:52]} Be7 {[%emt 0:6:36]} 13. Rfe1 $146 {[%emt 0:2:12]} ({Predecessor:} 13. Bg3 Qb6 14. Rae1 Nh5 15. Nd5 exd5 16. exd5 Nxg3 17. hxg3 Ne5 18. Nf5 Bf6 19. Qb4 Rd8 20. Qf4 Bc8 {0-1 Mileika,J-Petersons,A Riga-ch 1958 (5)} )Rc8 {[%emt 0:16:33]} 14. f3 {[%emt 0:12:21]} Ne5 {[%emt 0:4:18]} 15. Rad1 {[%emt 0:8:5]} Nc4 {[%emt 0:5:38]} 16. Bxc4 {[%emt 0:2:22]} Rxc4 {[%emt 0:1:6]} 17. Kh1 {[%emt 0:12:25]} Qb6 {[%emt 0:4:7]} 18. Bf2 {[%emt 0:5:18]} Qc7 {[%emt 0:0:53]} 19. Nce2 {[%emt 0:8:50]} O-O {[%emt 0:2:46]} 20. c3 {[%emt 0:0:46]} Qb8 {[%emt 0:2:20]} 21. Nf4 {[%emt 0:1:1]} Rcc8 {[%emt 0:3:44]} 22. Bg3 {[%emt 0:1:33]} Rfe8 {[%emt 0:1:38]} 23. Nd3 {[%emt 0:2:35]} Nd7 {[%emt 0:1:27]} 24. Qe2 {[%emt 0:3:45]} Bf8 {[%emt 0:1:9]} 25. e5 {[%emt 0:0:33]} Nxe5 {[%emt 0:0:43]} 26. Nxe5 {[%emt 0:0:30]} dxe5 {[%emt 0:0:5]} 27. Bxe5 {[%emt 0:0:54]} Qa8 {[%emt 0:1:12]} 28. Qf2 {[%emt 0:0:51]} f6 {[%emt 0:0:54]} (28... Rcd8 $15 {feels stronger.} )29. Bxf6 $1 $11 {[%emt 0:2:30]} gxf6 {[%emt 0:0:24]} 30. Rxe6 {[%emt 0:1:44]} (30. Nxe6 $11 Bd5 31. Qg3+ Kh7 32. Nxf8+ Rxf8 33. Qf4 (33. Qd6 Rce8 $11 ))Bd5 {[%emt 0:4:24]} ({Black should play} 30... Rcd8 $15 31. Qg3+ Kh8 32. Rxf6 Rd7 )31. Rxf6 $14 {[%emt 0:0:55]} Bg7 {[%emt 0:0:35]} 32. Qg3 {[%emt 0:0:0]} Qb8 $1 {[%emt 0:0:55]} 33. f4 {[%emt 0:2:58]} Re3 {[%emt 0:0:52]} 34. Qxe3 {[%emt 0:1:21]} Bxf6 {[%emt 0:0:4]} 35. Nf5 {[%emt 0:0:4]} Qa8 $2 {[%emt 0:1:7] [#]} (35... Re8 $1 $14 36. Qg3+ (36. Nxh6+ Kh7 $17 )Kh7 37. Rxd5 Qxf4 )36. Nxh6+ $2 {[%emt 0:0:42]} (36. Qg3+ $1 $18 Kh7 37. Qh3 Bxg2+ 38. Qxg2 Qxg2+ 39. Kxg2 )Kh7 $2 {[%emt 0:0:27][%mdl 8192]} (36... Kf8 $1 $11 )37. Ng4 $18 {[%emt 0:0:28]} Bxg2+ {[%emt 0:0:30]} 38. Kg1 {[%emt 0:0:1]} Bg7 {[%emt 0:0:24] [#]} 39. Rd7 $1 {[%emt 0:1:49]} Qc6 {[%emt 0:0:38]} 40. Qe7 {[%emt 0:3:25]} Qg6 {[%emt 0:0:28]} 41. Ne5 {[%emt 0:14:14]} (41. Qh4+ Kg8 42. Rxg7+ (42. Kxg2 $2 {loses.} Qc6+ 43. Kf2 Qxd7 $19 )Kxg7 43. Qe7+ (43. Kxg2 Re8 $17 )Kh8 (43... Kg8 44. Ne5 $11 )44. Qh4+ Kg8 $11 )Qb1+ {[%emt 0:16:34]} 42. Kxg2 {[%emt 0:0:13]} Qxb2+ {[%emt 0:0:54]} 43. Kh3 {[%emt 0:4:35]} Rxc3+ {[%emt 0:0:48]} 44. Nd3 {[%emt 0:0:12]} Rxa3 {[%emt 0:3:35]} 45. Qe4+ {[%emt 0:5:36]} Kh6 {[%emt 0:3:7]} 46. Rd6+ {[%emt 0:2:57]} Bf6 {[%emt 0:0:9]} 47. Qf5 {[%emt 0:0:34]} Rxd3+ {[%emt 0:1:12]} 48. Qxd3 {[%emt 0:2:7]} Qa1 {[%emt 0:1:2]} 49. Rd5 {[%emt 0:6:22]} (49. Kg4 $142 Qg1+ 50. Qg3 Qxg3+ 51. hxg3 Kg7 52. Rxa6 Bd4 53. Rd6 Bc3 54. Rb6 )Qe1 {[%emt 0:3:27]} 50. Rh5+ {[%emt 0:2:3]} Kg7 {[%emt 0:0:8]} 51. Qg3+ {[%emt 0:0:56]} Qxg3+ {[%emt 0:0:43]} 52. hxg3 {[%emt 0:0:2]} Kf7 {[%emt 0:1:50]} 53. Rc5 {[%emt 0:1:14]} Be7 {[%emt 0:2:21]} 54. Rh5 $2 {[%emt 0:1:56]} (54. Rc8 $18 {White wants to mate with Ra8.} b4 55. Rc7 )Ke8 $2 {[%emt 0:0:0][%mdl 8192]} (54... Bf6 $11 55. Kg4 Bg7 )55. Rh6 $18 {[%emt 0:0:50]} a5 {[%emt 0:0:0]} 56. Rh5 {[%emt 0:0:10]} b4 {[%emt 0:1:23]} 57. Rxa5 {[%emt 0:0:8]} Kd7 {[%emt 0:0:26]} 58. Ra7+ {[%emt 0:0:21]} Kd8 {[%emt 0:0:33]} 59. g4 {[%emt 0:0:29]} Bc5 {[%emt 0:0:22]} 60. Ra5 {[%emt 0:0:37]} Bd6 {[%emt 0:0:6]} 61. Kg3 {[%emt 0:15:24]} Kc7 {[%emt 0:15:4]} 62. g5 {[%emt 0:0:9]} Kb6 {[%emt 0:0:8]} 63. Ra1 {[%emt 0:0:16]} Kb5 {[%emt 0:0:10]} 64. g6 {[%emt 0:0:16]} Bf8 {[%emt 0:0:4]} 65. Ra8 {[%emt 0:0:12]} Bh6 {[%emt 0:0:22]} 66. Ra7 {[%emt 0:0:16]} b3 {[%emt 0:0:33]} 67. g7 {[%emt 0:0:8]} 1-0

[Event "57th Biel Festival MTO 2024"]
[White "Narayanan,Samrug"]
[Black "Winkelman,Albert"]
[Site "Biel"]
[Round "5.26"]
[Annotator "RC"]
[Result "1-0"]
[Date "2024.07.19"]
[WhiteElo "2335"]
[BlackElo "2243"]
[PlyCount "97"]
[TimeControl "60"]

1. e4 {[%emt 0:0:4]} e5 {[%emt 0:0:20]} 2. Nf3 {[%emt 0:0:8]} Nc6 {[%emt 0:0:12]} 3. Bb5 {[%emt 0:0:6]} Nf6 {[%emt 0:0:13]} 4. O-O {[%emt 0:0:6]} Nxe4 {[%emt 0:0:14]} 5. d4 {[%emt 0:0:15]} Nd6 {[%emt 0:0:15]} 6. Bxc6 {[%emt 0:0:4]} dxc6 {[%emt 0:0:16]} 7. dxe5 {[%emt 0:0:4]} Nf5 {[%emt 0:0:18]} 8. Qxd8+ {[%emt 0:0:6]} Kxd8 {[%emt 0:0:17]} 9. Rd1+ {[%emt 0:0:3]} Ke8 {[%emt 0:6:44]} 10. Nc3 {[%emt 0:0:6]} Be7 {[%emt 0:0:37]} 11. Bg5 {[%emt 0:0:6]} h6 {[%emt 0:4:56]} 12. Bxe7 {[%emt 0:0:22]} Nxe7 {[%emt 0:0:29]} 13. Nd4 {[%emt 0:2:59]} Nf5 {[%emt 0:9:29]} 14. Nde2 {[%emt 0:11:16]} g5 {[%emt 0:2:23]} 15. Rd3 {[%emt 0:5:12]} Be6 {[%emt 0:14:31]} 16. f4 {[%emt 0:1:31]} Bc4 {[%emt 0:19:50]} 17. Rd2 {[%emt 0:2:45]} Ne3 {[%emt 0:1:39]} 18. fxg5 {[%emt 0:11:6]} hxg5 {[%emt 0:7:29]} 19. Re1 {[%emt 0:3:12]} Rd8 {[%emt 0:2:47]} 20. Rxd8+ {[%emt 0:0:58]} Kxd8 {[%emt 0:0:9]} 21. Nd4 {[%emt 0:1:6]} Nd5 {[%emt 0:4:34]} 22. Ne4 {[%emt 0:1:46]} Nf4 {[%emt 0:9:57]} 23. Nxg5 {[%emt 0:1:38]} Bd5 {[%emt 0:2:29]} 24. g3 {[%emt 0:2:6]} Nh3+ {[%emt 0:0:12]} 25. Nxh3 {[%emt 0:0:3]} Rxh3 {[%emt 0:0:9]} 26. Ne2 {[%emt 0:1:25]} Bf3 {[%emt 0:0:15]} 27. Nf4 {[%emt 0:0:9]} Rh8 {[%emt 0:0:18]} 28. h3 {[%emt 0:0:35]} c5 {[%emt 0:0:36]} 29. Kf2 {[%emt 0:0:44]} Bc6 {[%emt 0:0:10]} 30. g4 {[%emt 0:0:11]} Ke7 {[%emt 0:0:38]} 31. Rd1 {[%emt 0:2:6]} Re8 {[%emt 0:1:13]} 32. h4 {[%emt 0:0:50]} Kf8 {[%emt 0:0:25]} 33. Re1 {[%emt 0:0:3]} Bd7 {[%emt 0:1:3]} 34. Kg3 {[%emt 0:0:22]} Be6 {[%emt 0:0:51]} 35. a3 {[%emt 0:1:23]} b5 {[%emt 0:0:30]} 36. h5 {[%emt 0:0:16]} b4 {[%emt 0:0:23]} 37. h6 {[%emt 0:0:31]} Kg8 {[%emt 0:0:55]} 38. g5 {[%emt 0:3:29]} Bf5 {[%emt 0:0:44]} 39. Nd5 {[%emt 0:1:23]} Kh8 {[%emt 0:1:19]} 40. Kf4 {[%emt 0:1:0]} Bxc2 {[%emt 0:0:28]} 41. Rc1 {[%emt 0:53:12]} b3 {[%emt 0:52:34]} 42. Ne3 {[%emt 0:0:23]} Bg6 {[%emt 0:0:46]} 43. Rxc5 {[%emt 0:0:8]} Rd8 {[%emt 0:0:25]} 44. Rd5 {[%emt 0:0:5]} Rxd5 {[%emt 0:2:22]} 45. Nxd5 {[%emt 0:0:4]} c5 {[%emt 0:0:8]} 46. Ke3 {[%emt 0:0:11]} Bf5 {[%emt 0:0:46]} 47. Kd2 {[%emt 0:0:39]} c4 {[%emt 0:4:22]} 48. Kc3 {[%emt 0:0:37]} Bd3 {[%emt 0:0:22]} 49. Nf4 {[%emt 0:0:4]} 1-0